fUSD/lending_fUSD_20250207
["ID","MTS","AMOUNT","RATE_DAILY","PERIOD"]
[352131124,1738956671914,-4265.56,0.00016986,2]
[352131125,1738956671924,-1264.49,0.00016986,2]
[352131126,1738956671934,-500.0,0.00016986,2]
[352131127,1738956671943,-2756.51,0.00016986,2]
[352131128,1738956671952,-1952.36,0.00016986,2]
[352131129,1738956671962,-500.0,0.00016986,2]
[352131130,1738956671971,-2675.04,0.00016986,2]
[352131131,1738956671980,-184.668002,0.00016986,2]
[352131132,1738956671990,-1643.06,0.00016986,2]
[352131133,1738956671999,-2535.68,0.00016986,2]
[352131134,1738956672009,-2559.02,0.00016986,2]
[352131135,1738956672018,-500.0,0.00016986,2]
[352131136,1738956672027,-982.62,0.00016986,2]
[352131137,1738956672039,-1048.24,0.00016986,2]
[352131138,1738956672049,-652.99,0.00016986,2]
[352131139,1738956672059,-3904.04,0.00016986,2]
[352131140,1738956672068,-634.310663,0.00016986,2]
[352131141,1738956672078,-500.0,0.00016986,2]
[352131142,1738956672087,-1687.81,0.00016986,2]
[352131143,1738956672096,-1846.01,0.00016986,2]
[352131144,1738956672105,-500.0,0.00016986,2]
[352131145,1738956672114,-500.0,0.00016986,2]
[352131146,1738956672123,-8054.78,0.00016986,2]
[352131147,1738956672133,-2697.16,0.00016986,2]
[352131148,1738956672142,-1537.43,0.00016986,2]
[352131149,1738956672151,-4171.0,0.00016986,2]
[352131150,1738956672160,-500.0,0.00016986,2]
[352131151,1738956672170,-4545.2,0.00016986,2]
[352131152,1738956672179,-871.03,0.00016986,2]
[352131153,1738956672188,-1100.92,0.00016986,2]
[352131154,1738956672198,-4717.88,0.00016986,2]
[352131155,1738956672207,-1186.63,0.00016986,2]
[352131156,1738956672217,-778.34,0.00016986,2]
[352131157,1738956672359,-500.0,0.00016986,2]
[352131158,1738956672369,-6146.82,0.00016986,2]
[352131159,1738956672379,-1352.28,0.00016986,2]
[352131160,1738956672389,-2922.19,0.00016986,2]
[352131161,1738956672399,-500.0,0.00016986,2]
[352131162,1738956672409,-823.38,0.00016986,2]
[352131163,1738956672419,-2029.74,0.00016986,2]
[352131164,1738956672429,-500.0,0.00016986,2]
[352131165,1738956672438,-500.0,0.00016986,2]
[352131166,1738956672448,-4297.56,0.00016986,2]
[352131167,1738956672458,-4260.15,0.00016986,2]
[352131168,1738956672468,-1150.5,0.00016986,2]
[352131169,1738956672477,-260.065579,0.00016986,2]
[352131170,1738956672487,-4984.09,0.00016986,2]
[352131171,1738956672497,-295.60401897,0.00016986,2]
[352131172,1738956672509,-630.57,0.00016986,2]
[352131173,1738956672519,-4214.42,0.00016986,2]
[352131174,1738956672528,-1455.84,0.00016986,2]
[352131175,1738956672539,-1559.73,0.00016986,2]
[352131176,1738956672548,-1241.92,0.00016986,2]
[352131177,1738956672558,-2692.24,0.00016986,2]
[352131178,1738956672568,-500.0,0.00016986,2]
[352131179,1738956672581,-500.0,0.00016986,2]
[352131180,1738956672590,-1067.17,0.00016986,2]
[352131181,1738956672600,-881.73,0.00016986,2]
[352131182,1738956672609,-3307.35,0.00016986,2]
[352131183,1738956672620,-2646.43,0.00016986,2]
[352131184,1738956672631,-500.0,0.00016986,2]
[352131185,1738956672640,-742.64,0.00016986,2]
[352131186,1738956672651,-500.0,0.00016986,2]
[352131187,1738956672661,-548.98,0.00016986,2]
[352131188,1738956672671,-3381.29,0.00016986,2]
[352131189,1738956672681,-471.27685829,0.00016986,2]
[352131190,1738956672691,-797.92,0.00016986,2]
[352131191,1738956672700,-3042.11,0.00016986,2]
[352131192,1738956672710,-553.95,0.00016986,2]
[352131193,1738956672720,-527.06,0.00016986,2]
[352131194,1738956672730,-500.0,0.00016986,2]
[352131195,1738956672739,-500.0,0.00016986,2]
[352131196,1738956672749,-1555.24,0.00016986,2]
[352131197,1738956672759,-3666.13,0.00016986,2]
[352131198,1738956672768,-1049.9,0.00016986,2]
[352131199,1738956672778,-500.0,0.00016986,2]
[352131200,1738956672794,-1298.26,0.00016986,2]
[352131201,1738956672804,-500.0,0.00016986,2]
[352131202,1738956672814,-2398.5399932,0.00016988,2]
[352131203,1738956672824,-1031.0,0.00016992,2]
[352131204,1738956672833,-800.0,0.00017,3]
[352131205,1738956672843,-400.0,0.00017,2]
[352131206,1738956672852,-3266.16906763,0.00017,2]
[352131207,1738956672862,-5053.57569925,0.00017,5]
[352131208,1738956672872,-50000.0,0.00017,6]
[352131209,1738956672881,-1000.0,0.00017,2]
[352131210,1738956672891,-5004.10527512,0.00017,4]
[352131211,1738956672901,-650.0,0.00017,2]
[352131212,1738956672911,-1031.0,0.00017019,2]
[352131213,1738956672922,-691.28534283,0.00017021,2]
[352131214,1738956672932,-1031.0,0.00017047,2]
[352131215,1738956672941,-1031.0,0.00017074,2]
[352131216,1738956672951,-431.0,0.0001708,2]
[352131217,1738956672960,-1031.0,0.00017101,2]
[352131218,1738956672970,-1000.0,0.00017121,2]
[352131219,1738956672980,-500.0,0.00017121,2]
[352131220,1738956672989,-500.27,0.00017121,2]
[352131221,1738956672999,-500.0,0.00017121,2]
[352131222,1738956673008,-500.0,0.00017121,2]
[352131223,1738956673017,-500.0,0.00017121,2]
[352131224,1738956673026,-500.0,0.00017121,2]
[352131225,1738956673039,-500.0,0.00017121,2]
[352131226,1738956673048,-500.0,0.00017121,2]
[352131227,1738956673058,-500.0,0.00017121,2]
[352131228,1738956673068,-500.0,0.00017121,2]
[352131229,1738956673077,-500.0,0.00017121,2]
[352131230,1738956673087,-220.45048827,0.00017121,2]
[352131231,1738956673096,-478.06,0.00017121,2]
[352131232,1738956673107,-227.47815264,0.00017121,2]
[352131233,1738956673116,-500.0,0.00017121,2]
[352131234,1738956673125,-500.0,0.00017121,2]
[352131235,1738956673135,-500.0,0.00017121,2]
[352131236,1738956673145,-500.0,0.00017121,2]
[352131237,1738956673154,-500.0,0.00017121,2]
[352131238,1738956673164,-555.22,0.00017121,2]
[352131239,1738956673174,-500.0,0.00017121,2]
[352131240,1738956673183,-500.0,0.00017121,2]
[352131241,1738956673193,-500.0,0.00017121,2]
[352131242,1738956673201,-410.29735146,0.00017121,2]
[352131243,1738956673211,-500.0,0.00017121,2]
[352131244,1738956673221,-500.0,0.00017121,2]
[352131245,1738956673230,-500.0,0.00017121,2]
[352131246,1738956673239,-558.45,0.00017121,2]
[352131247,1738956673249,-500.0,0.00017121,2]
[352131248,1738956673262,-500.0,0.00017121,2]
[352131249,1738956673281,-500.0,0.00017121,2]
[352131250,1738956673299,-500.0,0.00017121,2]
[352131251,1738956673319,-500.0,0.00017121,2]
[352131252,1738956673336,-500.0,0.00017121,2]
[352131253,1738956673354,-551.24,0.00017121,2]
[352131254,1738956673373,-500.0,0.00017121,2]
[352131255,1738956673394,-500.0,0.00017121,2]
[352131256,1738956673413,-500.0,0.00017121,2]
[352131257,1738956673432,-540.67,0.00017121,2]
[352131258,1738956673451,-229.74,0.00017121,2]
[352131259,1738956673466,-557.1,0.00017121,2]
[352131260,1738956673486,-500.0,0.00017121,2]
[352131261,1738956673500,-640.16,0.00017121,2]
[352131262,1738956673519,-500.0,0.00017121,2]
[352131263,1738956673536,-500.0,0.00017121,2]
[352131264,1738956673553,-500.0,0.00017121,2]
[352131265,1738956673570,-381.98001345,0.00017121,2]
[352131266,1738956673587,-500.0,0.00017121,2]
[352131267,1738956673603,-500.0,0.00017121,2]
[352131268,1738956673621,-500.0,0.00017121,2]
[352131269,1738956673637,-500.0,0.00017121,2]
[352131270,1738956673653,-500.0,0.00017121,2]
[352131271,1738956673670,-530.71,0.00017121,2]
[352131272,1738956673686,-500.0,0.00017121,2]
[352131273,1738956673702,-500.0,0.00017121,2]
[352131274,1738956673718,-2942.64,0.00017121,2]
[352131275,1738956673734,-500.0,0.00017121,2]
[352131276,1738956673750,-1743.62,0.00017121,2]
[352131277,1738956673766,-500.0,0.00017121,2]
[352131278,1738956673784,-720.06,0.00017121,2]
[352131279,1738956673799,-5046.81,0.00017121,2]
[352131280,1738956673814,-500.0,0.00017121,2]
[352131281,1738956673830,-500.0,0.00017121,2]
[352131282,1738956673846,-500.0,0.00017121,2]
[352131283,1738956673862,-500.0,0.00017121,2]
[352131284,1738956673877,-159.91,0.00017121,2]
[352131285,1738956673892,-500.0,0.00017121,2]
[352131286,1738956673907,-1994.07,0.00017121,2]
[352131287,1738956673924,-1138.25,0.00017121,2]
[352131288,1738956673939,-500.0,0.00017121,2]
[352131289,1738956673953,-500.0,0.00017121,2]
[352131290,1738956673968,-3516.18,0.00017121,2]
[352131291,1738956673982,-500.0,0.00017121,2]
[352131292,1738956673996,-500.0,0.00017121,2]
[352131293,1738956674011,-1024.51,0.00017121,2]
[352131294,1738956674027,-522.05,0.00017121,2]
[352131295,1738956674042,-2173.49,0.00017121,2]
[352131296,1738956674058,-612.99,0.00017121,2]
[352131297,1738956674073,-1229.36,0.00017121,2]
[352131298,1738956674088,-2227.07,0.00017121,2]
[352131299,1738956674103,-552.13,0.00017121,2]
[352131300,1738956674120,-2301.73,0.00017121,2]
[352131301,1738956674135,-1183.89,0.00017121,2]
[352131302,1738956674150,-518.71,0.00017121,2]
[352131303,1738956674175,-585.19,0.00017121,2]
[352131304,1738956674189,-2133.71,0.00017121,2]
[352131305,1738956674204,-500.0,0.00017121,2]
[352131306,1738956674218,-500.0,0.00017121,2]
[352131307,1738956674234,-500.0,0.00017121,2]
[352131308,1738956674248,-500.0,0.00017121,2]
[352131309,1738956674263,-2304.96,0.00017121,2]
[352131310,1738956674278,-500.0,0.00017121,2]
[352131311,1738956674294,-4101.49,0.00017121,2]
[352131312,1738956674309,-629.73,0.00017121,2]
[352131313,1738956674323,-10904.08,0.00017121,2]
[352131314,1738956674339,-1990.52,0.00017121,2]
[352131315,1738956674354,-500.0,0.00017121,2]
[352131316,1738956674369,-500.0,0.00017121,2]
[352131317,1738956674384,-500.0,0.00017121,2]
[352131318,1738956674400,-1994.74,0.00017121,2]
[352131319,1738956674414,-500.0,0.00017121,2]
[352131320,1738956674429,-500.0,0.00017121,2]
[352131321,1738956674451,-513.88459256,0.00017121,2]
[352131322,1738956674467,-2018.74,0.00017121,2]
[352131323,1738956674484,-500.0,0.00017121,2]
[352131324,1738956674499,-500.0,0.00017121,2]
[352131325,1738956674514,-500.0,0.00017121,2]
[352131326,1738956674529,-500.0,0.00017121,2]
[352131327,1738956674547,-1695.7,0.00017121,2]
[352131328,1738956674562,-500.0,0.00017121,2]
[352131329,1738956674580,-3966.69,0.00017121,2]
[352131330,1738956674594,-662.29,0.00017121,2]
[352131331,1738956674609,-1062.51,0.00017122,2]
[352131332,1738956674625,-500.0,0.00017122,2]
[352131333,1738956674635,-1219.59,0.00017122,2]
[352131334,1738956674645,-857.35,0.00017122,2]
[352131335,1738956674853,-500.0,0.00017122,2]
[352131336,1738956674876,-526.56,0.00017122,2]
[352131337,1738956674886,-500.0,0.00017122,2]
[352131338,1738956674895,-547.58,0.00017122,2]
[352131339,1738956674905,-500.0,0.00017122,2]
[352131340,1738956674914,-500.0,0.00017122,2]
[352131341,1738956674924,-1136.81,0.00017122,2]
[352131342,1738956674933,-533.79,0.00017122,2]
[352131343,1738956674942,-500.0,0.00017122,2]
[352131344,1738956674952,-500.0,0.00017122,2]
[352131345,1738956674963,-1186.33,0.00017122,2]
[352131346,1738956674972,-500.0,0.00017122,2]
[352131347,1738956674982,-529.03,0.00017122,2]
[352131348,1738956674994,-1230.22,0.00017122,2]
[352131349,1738956675003,-500.0,0.00017122,2]
[352131350,1738956675012,-1245.85,0.00017122,2]
[352131351,1738956675021,-500.0,0.00017122,2]
[352131352,1738956675031,-1446.41,0.00017122,2]
[352131353,1738956675040,-565.43,0.00017122,2]
[352131354,1738956675049,-564.24,0.00017122,2]
[352131355,1738956675059,-500.0,0.00017122,2]
[352131356,1738956675068,-550.96,0.00017122,2]
[352131357,1738956675078,-500.0,0.00017122,2]
[352131358,1738956675087,-1579.64,0.00017122,2]
[352131359,1738956675096,-520.2,0.00017122,2]
[352131360,1738956675105,-1605.34,0.00017122,2]
[352131361,1738956675115,-1579.05,0.00017122,2]
[352131362,1738956675125,-551.37,0.00017122,2]
[352131363,1738956675135,-601.14,0.00017122,2]
[352131364,1738956675145,-500.0,0.00017122,2]
[352131365,1738956675154,-1184.1,0.00017122,2]
[352131366,1738956675163,-678.58,0.00017122,2]
[352131367,1738956675173,-500.0,0.00017122,2]
[352131368,1738956675182,-515.45,0.00017122,2]
[352131369,1738956675191,-521.99,0.00017122,2]
[352131370,1738956675200,-552.13,0.00017122,2]
[352131371,1738956675210,-2651.33,0.00017122,2]
[352131372,1738956675219,-615.95,0.00017122,2]
[352131373,1738956675228,-500.0,0.00017122,2]
[352131374,1738956675238,-757.978893,0.00017123,2]
[352131375,1738956675247,-757.978893,0.00017123,2]
[352131376,1738956675256,-151.0,0.00017123,2]
[352131377,1738956675265,-151.0,0.00017123,2]
[352131378,1738956675275,-161.297112,0.00017123,2]
[352131379,1738956675285,-280.503188,0.00017123,2]
[352131380,1738956675295,-280.503188,0.00017123,2]
[352131381,1738956675304,-500.0,0.00017123,2]
[352131382,1738956675314,-500.0,0.00017123,2]
[352131383,1738956675322,-500.0,0.00017123,2]
[352131384,1738956675331,-500.0,0.00017123,2]
[352131385,1738956675341,-659.78,0.00017123,2]
[352131386,1738956675351,-500.0,0.00017123,2]
[352131387,1738956675361,-500.0,0.00017123,2]
[352131388,1738956675370,-500.0,0.00017123,2]
[352131389,1738956675380,-500.0,0.00017123,2]
[352131390,1738956675391,-500.0,0.00017123,2]
[352131391,1738956675401,-500.0,0.00017123,2]
[352131392,1738956675412,-500.0,0.00017123,2]
[352131393,1738956675421,-513.84,0.00017123,2]
[352131394,1738956675431,-1712.36,0.00017123,2]
[352131395,1738956675440,-1938.63,0.00017123,2]
[352131396,1738956675449,-1697.97,0.00017123,2]
[352131397,1738956675458,-500.0,0.00017123,2]
[352131398,1738956675467,-1225.54,0.00017123,2]
[352131399,1738956675477,-500.0,0.00017123,2]
[352131400,1738956675486,-500.0,0.00017123,2]
[352131401,1738956675495,-676.85,0.00017123,2]
[352131402,1738956675504,-500.0,0.00017123,2]
[352131403,1738956675513,-500.0,0.00017123,2]
[352131404,1738956675523,-1685.31,0.00017123,60]
[352131405,1738956675533,-500.0,0.00017123,2]
[352131406,1738956675542,-541.77,0.00017123,2]
[352131407,1738956675551,-500.0,0.00017123,2]
[352131408,1738956675560,-667.78,0.00017123,2]
[352131409,1738956675570,-573.49,0.00017123,2]
[352131410,1738956675583,-1308.11,0.00017123,2]
[352131411,1738956675593,-1722.81,0.00017123,2]
[352131412,1738956675602,-500.0,0.00017123,2]
[352131413,1738956675611,-925.93,0.00017123,2]
[352131414,1738956675622,-500.0,0.00017123,2]
[352131415,1738956675631,-1095.49,0.00017123,2]
[352131416,1738956675641,-500.0,0.00017123,2]
[352131417,1738956675651,-649.37,0.00017123,2]
[352131418,1738956675661,-776.83,0.00017123,2]
[352131419,1738956675671,-1010.35,0.00017123,2]
[352131420,1738956675680,-1263.77,0.00017123,2]
[352131421,1738956675689,-500.0,0.00017123,2]
[352131422,1738956675698,-500.0,0.00017123,2]
[352131423,1738956675707,-500.0,0.00017123,2]
[352131424,1738956675717,-1637.13,0.00017123,2]
[352131425,1738956675726,-694.17,0.00017123,2]
[352131426,1738956675738,-500.0,0.00017123,2]
[352131427,1738956675748,-730.01,0.00017123,2]
[352131428,1738956675757,-500.0,0.00017123,2]
[352131429,1738956675767,-568.23,0.00017123,2]
[352131430,1738956675778,-1444.08,0.00017123,2]
[352131431,1738956675789,-500.0,0.00017123,2]
[352131432,1738956675798,-500.0,0.00017123,2]
[352131433,1738956675808,-500.0,0.00017123,2]
[352131434,1738956675818,-712.73,0.00017123,2]
[352131435,1738956675827,-500.0,0.00017123,2]
[352131436,1738956675837,-500.0,0.00017123,2]
[352131437,1738956675847,-500.0,0.00017123,2]
[352131438,1738956675857,-500.0,0.00017123,2]
[352131439,1738956675866,-500.0,0.00017123,2]
[352131440,1738956675875,-500.0,0.00017123,2]
[352131441,1738956675884,-1676.26,0.00017123,2]
[352131442,1738956675894,-500.0,0.00017123,2]
[352131443,1738956675903,-500.0,0.00017123,2]
[352131444,1738956675913,-500.0,0.00017123,2]
[352131445,1738956675922,-500.0,0.00017123,2]
[352131446,1738956675932,-500.0,0.00017123,2]
[352131447,1738956675941,-1138.99,0.00017123,2]
[352131448,1738956675951,-500.0,0.00017123,2]
[352131449,1738956675961,-500.0,0.00017123,2]
[352131450,1738956675970,-500.0,0.00017123,2]
[352131451,1738956675979,-500.0,0.00017123,2]
[352131452,1738956675988,-500.0,0.00017123,2]
[352131453,1738956675998,-1316.0,0.00017123,2]
[352131454,1738956676007,-725.14,0.00017123,2]
[352131455,1738956676017,-1188.45,0.00017123,2]
[352131456,1738956676026,-516.4,0.00017123,2]
[352131457,1738956676036,-510.03,0.00017123,2]
[352131458,1738956676045,-500.0,0.00017123,2]
[352131459,1738956676055,-500.0,0.00017123,2]
[352131460,1738956676064,-1472.92,0.00017123,2]
[352131461,1738956676074,-1412.12,0.00017123,2]
[352131462,1738956676084,-529.81,0.00017123,2]
[352131463,1738956676093,-500.0,0.00017123,2]
[352131464,1738956676103,-981.75,0.00017123,2]
[352131465,1738956676112,-520.02,0.00017123,2]
[352131466,1738956676122,-647.02,0.00017123,2]
[352131467,1738956676131,-1033.68,0.00017123,2]
[352131468,1738956676140,-522.48,0.00017123,2]
[352131469,1738956676150,-500.0,0.00017123,2]
[352131470,1738956676160,-500.0,0.00017123,2]
[352131471,1738956676169,-662.32,0.00017123,2]
[352131472,1738956676179,-1353.23,0.00017123,2]
[352131473,1738956676188,-508.39,0.00017123,2]
[352131474,1738956676197,-1634.27,0.00017123,2]
[352131475,1738956676207,-500.0,0.00017123,2]
[352131476,1738956676216,-544.73,0.00017123,2]
[352131477,1738956676226,-529.48,0.00017123,2]
[352131478,1738956676236,-500.0,0.00017123,2]
[352131479,1738956676245,-939.05,0.00017123,2]
[352131480,1738956676255,-1428.68,0.00017123,2]
[352131481,1738956676264,-500.0,0.00017123,2]
[352131482,1738956676273,-690.69,0.00017123,2]
[352131483,1738956676284,-1130.37,0.00017123,2]
[352131484,1738956676293,-500.0,0.00017123,2]
[352131485,1738956676303,-500.0,0.00017123,2]
[352131486,1738956676312,-1381.35,0.00017123,2]
[352131487,1738956676322,-580.24,0.00017123,2]
[352131488,1738956676332,-1489.45,0.00017123,2]
[352131489,1738956676342,-500.0,0.00017123,2]
[352131490,1738956676352,-500.0,0.00017123,2]
[352131491,1738956676361,-1435.35,0.00017123,2]
[352131492,1738956676371,-1168.21,0.00017123,2]
[352131493,1738956676380,-3966.24,0.00017123,2]
[352131494,1738956676390,-648.0,0.00017123,2]
[352131495,1738956676399,-1165.23,0.00017123,2]
[352131496,1738956676409,-500.0,0.00017123,2]
[352131497,1738956676419,-7619.928368,0.00017123,2]
[352131498,1738956676429,-2615.59,0.00017123,2]
[352131499,1738956676439,-830.58,0.00017123,2]
[352131500,1738956676448,-233.61,0.00017123,2]
[352131501,1738956676458,-2112.58,0.00017123,2]
[352131502,1738956676467,-461.31307247,0.00017123,2]
[352131503,1738956676477,-1540.26,0.00017123,2]
[352131504,1738956676487,-7033.655455,0.00017123,2]
[352131505,1738956676497,-1387.93,0.00017123,2]
[352131506,1738956676509,-1751.47,0.00017123,2]
[352131507,1738956676519,-2850.19,0.00017123,2]
[352131508,1738956676529,-603.96,0.00017123,2]
[352131509,1738956676542,-500.0,0.00017123,2]
[352131510,1738956676554,-2172.91,0.00017123,2]
[352131511,1738956676565,-191.528324,0.00017123,2]
[352131512,1738956676576,-1670.17,0.00017123,2]
[352131513,1738956676587,-500.0,0.00017123,2]
[352131514,1738956676598,-1335.8,0.00017123,2]
[352131515,1738956676608,-1813.96,0.00017123,2]
[352131516,1738956676619,-500.0,0.00017123,2]
[352131517,1738956676629,-500.0,0.00017123,2]
[352131518,1738956676639,-1815.88,0.00017123,2]
[352131519,1738956676649,-1078.85,0.00017123,2]
[352131520,1738956676660,-500.0,0.00017123,2]
[352131521,1738956676670,-650.97,0.00017123,2]
[352131522,1738956676680,-1933.83,0.00017123,2]
[352131523,1738956676689,-1477.72,0.00017123,2]
[352131524,1738956676698,-520.8,0.00017123,2]
[352131525,1738956676707,-1313.81,0.00017123,2]
[352131526,1738956676717,-618.23,0.00017123,2]
[352131527,1738956676726,-500.0,0.00017123,2]
[352131528,1738956676735,-831.306402,0.00017123,2]
[352131529,1738956676745,-2982.88,0.00017123,2]
[352131530,1738956676755,-500.0,0.00017123,2]
[352131531,1738956676765,-500.0,0.00017123,2]
[352131532,1738956676774,-500.0,0.00017123,2]
[352131533,1738956676783,-523.72,0.00017123,2]
[352131534,1738956676796,-1656.24,0.00017123,2]
[352131535,1738956676805,-572.528237,0.00017123,2]
[352131536,1738956676814,-3275.06,0.00017123,2]
[352131537,1738956676823,-1882.91,0.00017123,2]
[352131538,1738956676832,-1686.85,0.00017123,2]
[352131539,1738956676842,-972.36,0.00017123,2]
[352131540,1738956676851,-993.82,0.00017123,2]
[352131541,1738956676860,-1338.75,0.00017123,2]
[352131542,1738956676869,-2377.09,0.00017123,2]
[352131543,1738956676879,-1209.72,0.00017123,2]
[352131544,1738956676888,-3708.92,0.00017123,2]
[352131545,1738956676898,-2135.6,0.00017123,2]
[352131546,1738956676908,-2799.93,0.00017123,2]
[352131547,1738956676918,-571.13,0.00017123,2]
[352131548,1738956676928,-2642.08,0.00017123,2]
[352131549,1738956676937,-928.35,0.00017123,2]
[352131550,1738956676946,-2130.68,0.00017123,2]
[352131551,1738956676956,-2968.87,0.00017123,2]
[352131552,1738956676966,-500.0,0.00017123,2]
[352131553,1738956676976,-500.0,0.00017123,2]
[352131554,1738956676985,-4265.56,0.00017123,2]
[352131555,1738956676995,-1264.49,0.00017123,2]
[352131556,1738956677004,-500.0,0.00017123,2]
[352131557,1738956677013,-2756.51,0.00017123,2]
[352131558,1738956677023,-1952.36,0.00017123,2]
[352131559,1738956677032,-500.0,0.00017123,2]
[352131560,1738956677043,-2675.04,0.00017123,2]
[352131561,1738956677052,-184.668002,0.00017123,2]
[352131562,1738956677062,-1643.06,0.00017123,2]
[352131563,1738956677071,-2535.68,0.00017123,2]
[352131564,1738956677082,-2559.02,0.00017123,2]
[352131565,1738956677093,-535.7,0.00017123,2]
[352131566,1738956677103,-982.62,0.00017123,2]
[352131567,1738956677112,-1048.24,0.00017123,2]
[352131568,1738956677122,-652.99,0.00017123,2]
[352131569,1738956677131,-3904.04,0.00017123,2]
[352131570,1738956677141,-634.310663,0.00017123,2]
[352131571,1738956677151,-500.0,0.00017123,2]
[352131572,1738956677161,-1687.81,0.00017123,2]
[352131573,1738956677171,-1846.01,0.00017123,2]
[352131574,1738956677180,-500.0,0.00017123,2]
[352131575,1738956677190,-500.0,0.00017123,2]
[352131576,1738956677199,-8054.78,0.00017123,2]
[352131577,1738956677208,-2697.16,0.00017123,2]
[352131578,1738956677218,-1537.43,0.00017123,2]
[352131579,1738956677228,-4171.0,0.00017123,2]
[352131580,1738956677238,-500.0,0.00017123,2]
[352131581,1738956677248,-4545.2,0.00017123,2]
[352131582,1738956677257,-871.03,0.00017123,2]
[352131583,1738956677267,-1100.92,0.00017123,2]
[352131584,1738956677276,-4717.88,0.00017123,2]
[352131585,1738956677286,-1186.63,0.00017123,2]
[352131586,1738956677295,-778.34,0.00017123,2]
[352131587,1738956677305,-500.0,0.00017123,2]
[352131588,1738956677315,-6146.82,0.00017123,2]
[352131589,1738956677325,-1352.28,0.00017123,2]
[352131590,1738956677334,-2922.19,0.00017123,2]
[352131591,1738956677343,-500.0,0.00017123,2]
[352131592,1738956677353,-823.38,0.00017123,2]
[352131593,1738956677362,-2029.74,0.00017123,2]
[352131594,1738956677372,-500.0,0.00017123,2]
[352131595,1738956677382,-500.0,0.00017123,2]
[352131596,1738956677391,-4297.56,0.00017123,2]
[352131597,1738956677401,-4260.15,0.00017123,2]
[352131598,1738956677411,-1150.5,0.00017123,2]
[352131599,1738956677420,-260.065579,0.00017123,2]
[352131600,1738956677430,-4984.09,0.00017123,2]
[352131601,1738956677440,-630.57,0.00017123,2]
[352131602,1738956677449,-4214.42,0.00017123,2]
[352131603,1738956677459,-1455.84,0.00017123,2]
[352131604,1738956677468,-1559.73,0.00017123,2]
[352131605,1738956677478,-1241.92,0.00017123,2]
[352131606,1738956677488,-2692.24,0.00017123,2]
[352131607,1738956677498,-500.0,0.00017123,2]
[352131608,1738956677507,-500.0,0.00017123,2]
[352131609,1738956677517,-1067.17,0.00017123,2]
[352131610,1738956677526,-881.73,0.00017123,2]
[352131611,1738956677537,-3307.35,0.00017123,2]
[352131612,1738956677548,-2646.43,0.00017123,2]
[352131613,1738956677558,-500.0,0.00017123,2]
[352131614,1738956677713,-742.64,0.00017123,2]
[352131615,1738956677722,-500.0,0.00017123,2]
[352131616,1738956677732,-548.98,0.00017123,2]
[352131617,1738956677741,-3381.29,0.00017123,2]
[352131618,1738956677751,-797.92,0.00017123,2]
[352131619,1738956677760,-3042.11,0.00017123,2]
[352131620,1738956677769,-553.95,0.00017123,2]
[352131621,1738956677779,-527.06,0.00017123,2]
[352131622,1738956677789,-500.0,0.00017123,2]
[352131623,1738956677799,-500.0,0.00017123,2]